Workbook

Sheet Rentabilité
C2: Mise à jour en avril 2023 : | E2: Modification des Lambda + prix du kWh
B3: Rentabilité de l'isolation d'une conduite parcourue par de l'eau chaude
B4: Ce programme permet de :
B5: - calculer les pertes d'énergie d'une conduite parcourue par de l'eau chaude,
B6: - comparer 2 solutions d'isolations (par exemple, la rentabilité d'une épaisseur d'isolation complémentaire)
B7: - calculer la rentabilité d'une isolation (en partant d'une situation 1 sans isolant).
B9: En pratique,
B10: - encodez les données relatives à votre situation dans les cases bleues.
B11: - les résultats sont repris dans les cases jaunes.
B13: Conduite
B14: Les pertes d'une conduite enterrée sont inférieure de 10 à 35% aux pertes d'une conduite aérienne. On se rapproche de 10% avec un sol sabloneux"
B15: et une conduite enterrée profondément, On se rapproche de 35% avec une conduite enterrée à faible profondeur dans un sol argileux.
B16: En fonction de votre situation, choisissez un pourcentage de réduction des pertes pour conduite enterrée.
B18: Pourcentage de réduction des pertes pour conduite enterrée | H18: =IF(Données!B42=1,Données!B43,0) -> 0 | I18: %
B20: Diamètre du tuyau
B21: Longueur du conduit | D21: 1 | E21: m
B22: T° moyenne de l'eau | D22: 60 | E22: °C | G22: (boucle ECS : 60°C; chauffage à T° glissante : 43°C)
B23: T° moyenne de l'ambiance | D23: 20 | E23: °C
B24: Nbre heures fonct./an | D24: 8760 | E24: heures | G24: (année : 8760 h; saison chauffe : 5800 h)
B25: Vecteur énergétique
B26: Prix du kWh | D26: 0.5 | E26: =IF(Données!B31=1,"Euro/litre",IF(Données!B31=2,"Euro/m³","Euro/kWh")) -> Euro/litre | G26: (électricité 0,5 Euro/kWh, fuel : 1 Euro/l, gaz :1 Euro/m³ - donnée : février 2023)
B29: Solution 1 | G29: Solution 2
B31: Lambda Isolant | D31: =INDEX(N33:P37,Q33,3) -> aucun | E31: W/m.K | G31: Lambda Isolant | I31: =INDEX(N33:P37,Q34,3) -> 0.038 | J31: W/m.K
B32: Epaisseur | D32: 0.01 | E32: m | G32: Epaisseur | I32: 0.03 | J32: m | N32: Matériau isolant | P32: Lambda | Q32: Cellule cible | S32: Notes
B33: Coût total de l'isolation | D33: 5 | E33: Euro/m | G33: Coût total de l'isolation | I33: 5 | J33: Euro/m | N33: aucun isolant | P33: aucun | Q33: 1
B34: Coefficient kL du tuyau | D34: =IF(D31="aucun",10*3.1416*Données!B23,3.1416/((LN((Données!B23+2*D32)/Données!B23)/(2*D31))+1/(10*(Données!B23+2*D32))))*(1-H18/100) -> 0.848232 | E34: W/m.K | G34: Coefficient kL du tuyau | I34: =IF(I31="aucun",10*3.1416*Données!B23,3.1416/((LN((Données!B23+2*I32)/Données!B23)/(2*I31))+1/(10*(Données!B23+2*I32))))*(1-H18/100) -> 0.1898809958 | J34: W/m.K | N34: laine minérale | P34: 0.035 | Q34: 5 | S34: Valeurs courantes
B35: Puissance par mètre | D35: =+D34*($D$22-$D$23) -> 33.92928 | E35: W/m | G35: Puissance par mètre | I35: =+I34*($D$22-$D$23) -> 7.595239832 | J35: W/m | N35: polyuréthane PUR | P35: 0.022 | S35: (EPBD: 0,019 - 0,037)
B36: Déperdition annuelle | D36: =+$D$24*D35*$D$21/1000 -> 297.2204928 | E36: kWh | G36: Déperdition annuelle | I36: =+$D$24*I35*$D$21/1000 -> 66.53430093 | J36: kWh | N36: polystyrène | P36: 0.032 | S36: Valeurs courantes
B37: Coût annuel des pertes | D37: =IF(Données!$B$31=3,+D36*$D$26,+D36*$D$26/10) -> 14.86102464 | E37: Euro | G37: Coût annuel des pertes | I37: =IF(Données!$B$31=3,+I36*$D$26,+I36*$D$26/10) -> 3.326715047 | J37: Euro | N37: polyéthylène | P37: 0.038
B39: Pour estimer le gain réalisé grâce à l'isolation d'un tuyau non isolé, comparez une solution 1 sans isolant et une solution 2 avec isolant.
B40: Vous pouvez également comparer deux solutions avec des épaisseurs d'isolant différentes et calculer la rentabilité de la surépaisseur.
D42: Economie sol. 2 / sol. 1 | G42: =+(D37-I37)*30 -> 346.0292878 | H42: Euro/30 ans
D43: Temps de retour | G43: =IF(G42=0,"-",(Données!B36-Données!B35)*D21/(D37-I37)) -> 0.4334893181 | H43: ans
B46: hypothèse : par simplification, le coefficient d'échange superficiel a été pris à une valeur constante de 10 W/m².K
C48: Pour enregistrer vos données dans | F48: Pour imprimer cette feuille sur votre
C49: un fichier "Excel", cliquez ici : | F49: imprimante par défaut, cliquez ici :

Sheet Données
A2: Type de tuyau
D3: mm | E3: m | F3: reg allemande
A4: DN10 - 3/8" - diam = 17 mm | D4: 17 | E4: =D4/1000 -> 0.017 | F4: 20 | I4: 10 | J4: 25 | K4: 30 | M4: 10 | N4: 25 | O4: 40
A5: DN15 - 1/2" - diam = 21 mm | D5: 21 | E5: =D5/1000 -> 0.021 | F5: 20 | I5: 15 | J5: 25 | K5: 30 | M5: 15 | N5: 25 | O5: 40
A6: DN20 - 3/4" - diam = 27 mm | D6: 27 | E6: 0.027 | F6: 20 | I6: 20 | J6: 25 | K6: 40 | M6: 20 | N6: 30 | O6: 40
A7: DN25 - 1" - diam = 34 mm | D7: 34 | E7: 0.034 | F7: 30 | I7: 25 | J7: 25 | K7: 40 | M7: 25 | N7: 30 | O7: 50
A8: DN32 - 1 1/4" - diam = 42 mm | D8: 42 | E8: 0.042 | F8: 30 | I8: 32 | J8: 30 | K8: 40 | M8: 32 | N8: 40 | O8: 50
A9: DN40 - 1 1/2" - diam = 48 mm | D9: 48 | E9: 0.048 | F9: 48 | I9: 40 | J9: 30 | K9: 50 | M9: 40 | N9: 40 | O9: 50
A10: DN50 - 2" - diam = 60 mm | D10: 60 | E10: 0.06 | F10: 60 | I10: 50 | J10: 30 | K10: 50 | M10: 50 | N10: 40 | O10: 50
A11: DN65 - 2 1/2" - diam = 76 mm | D11: 76 | E11: 0.076 | F11: 76 | I11: 65 | J11: 40 | K11: 50 | M11: 65 | N11: 40 | O11: 60
A12: DN80 - 3" - diam = 89 mm | D12: 89 | E12: 0.089 | F12: 89 | I12: 80 | J12: 40 | K12: 60 | M12: 80 | N12: 50 | O12: 60
A13: DN100 - 4" - diam = 114 mm | D13: 114 | E13: 0.114 | F13: 100 | I13: 100 | J13: 40 | K13: 60 | M13: 100 | N13: 50 | O13: 80
A14: DN125 - 5" - diam = 140 mm | D14: 140 | E14: 0.14 | F14: 100 | I14: 125 | J14: 50 | K14: 60 | M14: 125 | N14: 60 | O14: 80
A15: DN150 - 6" - diam = 165 mm | D15: 165 | E15: 0.165 | F15: 100 | I15: 150 | J15: 50 | K15: 80 | M15: 150 | N15: 60 | O15: 80
A16: DN200 - diam = 219 mm | D16: 219 | E16: 0.219 | F16: 100 | I16: 200 | J16: 50 | K16: 80 | M16: 200 | N16: 60 | O16: 80
A17: DN250 - diam = 273 mm | D17: 272 | E17: 0.272 | F17: 100 | I17: 250 | J17: 60 | K17: 80 | M17: 250 | N17: 60 | O17: 80
A18: DN300 - diam = 324 mm | D18: 325 | E18: 0.325 | F18: 100 | I18: 300 | J18: 60 | K18: 80 | M18: 300 | N18: 80 | O18: 100
A19: DN350 - diam = 378 mm | D19: 378 | E19: 0.378 | F19: 100 | I19: 350 | J19: 60 | K19: 80 | M19: 350 | N19: 80 | O19: 100
A20: DN400 - diam = 432 mm | D20: 432 | E20: 0.432 | F20: 100 | I20: 400 | J20: 60 | K20: 80 | M20: 400 | N20: 80 | O20: 100
F21: mm
A22: Cellule | B22: 3
A23: Diamètre | B23: =INDEX(E4:E20,B22,1) -> 0.027 | C23: m
A26: Combustible
A27: Fuel
A28: Gaz
A29: Electricité
A31: Cellule | B31: 1
A34: Prix de l'isolant
A35: Solution 1 | B35: =IF(Rentabilité!D31="aucun",0,Rentabilité!D33) -> 0 | C35: euro/m
A36: Solution 2 | B36: =IF(Rentabilité!I31="aucun",0,Rentabilité!I33) -> 5 | C36: euro/m
A38: Conduite
A39: Enterrée
A40: Aérienne
A42: Cellule | B42: 2
A43: %réduction | B43: 35
A46: épaisseur réglementation allemande
A48: dn tuyaux | B48: mm
A49: DN20 | B49: 20
A50: DN32 | B50: 30
A51: DN100
A52: DN100 | B52: 100
